fUST/lending_fUST_20250914
["ID","MTS","AMOUNT","RATE_DAILY","PERIOD"]
[385453125,1757861441939,-1319.58,0.00021917,2]
[385453126,1757861441950,-480.0,0.00021917,2]
[385453127,1757861441959,-480.0,0.00021917,2]
[385453128,1757861441969,-480.0,0.00021917,2]
[385453129,1757861441980,-480.0,0.00021917,2]
[385453130,1757861441991,-480.0,0.00021917,2]
[385453131,1757861442001,-480.0,0.00021917,2]
[385453132,1757861442013,-489.50062864,0.00021917,2]
[385453133,1757861442023,-480.0,0.00021917,2]
[385453134,1757861442168,-612.77,0.00021917,2]
[385453135,1757861442179,-829.63,0.00021917,2]
[385453136,1757861442188,-1123.93,0.00021917,2]
[385453137,1757861442197,-500.0,0.00021917,2]
[385453138,1757861442206,-480.0,0.00021917,2]
[385453139,1757861442215,-480.0,0.00021917,2]
[385453140,1757861442224,-1467.29,0.00021917,2]
[385453141,1757861442234,-498.23,0.00021917,2]
[385453142,1757861442243,-1038.84,0.00021917,2]
[385453143,1757861442252,-491.99687363,0.00021917,2]
[385453144,1757861442261,-616.35,0.00021917,2]
[385453145,1757861442270,-2556.61,0.00021917,2]
[385453146,1757861442279,-909.61,0.00021917,2]
[385453147,1757861442288,-1593.57,0.00021917,2]
[385453148,1757861442298,-834.99,0.00021917,2]
[385453149,1757861442307,-1158.75,0.00021917,2]
[385453150,1757861442317,-506.42554039,0.00021917,2]
[385453151,1757861442328,-4013.07,0.00021917,2]
[385453152,1757861442337,-780.28,0.00021917,2]
[385453153,1757861442347,-602.68,0.00021917,2]
[385453154,1757861442358,-569.55,0.00021917,2]
[385453155,1757861442368,-490.52124139,0.00021917,2]
[385453156,1757861442378,-736.66,0.00021917,2]
[385453157,1757861442387,-24338.45,0.00021917,2]
[385453158,1757861442397,-480.01755965,0.00021917,2]
[385453159,1757861442406,-2989.2,0.00021917,2]
[385453160,1757861442416,-480.0,0.00021917,2]
[385453161,1757861442425,-480.0,0.00021917,2]
[385453162,1757861442434,-480.0,0.00021917,2]
[385453163,1757861442444,-480.0,0.00021917,2]
[385453164,1757861442453,-1380.42,0.00021917,2]
[385453165,1757861442462,-1178.35,0.00021917,2]
[385453166,1757861442471,-480.0,0.00021917,2]
[385453167,1757861442481,-2677.4,0.00021917,2]
[385453168,1757861442491,-480.0,0.00021917,2]
[385453169,1757861442500,-1461.19,0.00021917,2]
[385453170,1757861442510,-567.85,0.00021917,2]
[385453171,1757861442519,-480.0,0.00021917,2]
[385453172,1757861442528,-1953.71,0.00021917,2]
[385453173,1757861442538,-346.47676145,0.00021917,2]
[385453174,1757861442547,-618.30008015,0.00021917,2]
[385453175,1757861442557,-480.0,0.00021917,2]
[385453176,1757861442566,-480.0,0.00021917,2]
[385453177,1757861442578,-480.0,0.00021917,2]
[385453178,1757861442587,-1088.61,0.00021917,2]
[385453179,1757861442597,-480.0,0.00021917,2]
[385453180,1757861442606,-892.19,0.00021917,2]
[385453181,1757861442616,-480.0,0.00021917,2]
[385453182,1757861442625,-1173.4,0.00021917,2]
[385453183,1757861442634,-521.82,0.00021917,2]
[385453184,1757861442643,-480.0,0.00021917,2]
[385453185,1757861442652,-818.3,0.00021917,2]
[385453186,1757861442662,-488.11613169,0.00021917,2]
[385453187,1757861442672,-600.82,0.00021917,2]
[385453188,1757861442682,-3090.32,0.00021917,2]
[385453189,1757861442691,-480.0,0.00021917,2]
[385453190,1757861442701,-2735.44,0.00021917,2]
[385453191,1757861442710,-480.0,0.00021917,2]
[385453192,1757861442720,-480.0,0.00021917,2]
[385453193,1757861442730,-450.91852861,0.00021954,2]
[385453194,1757861442739,-500.0,0.00021973,2]
[385453195,1757861442748,-481.14329977,0.00021973,2]
[385453196,1757861442758,-593.05860003,0.00021973,2]
[385453197,1757861442768,-500.0,0.00021973,2]
[385453198,1757861442777,-500.0,0.00021973,2]
[385453199,1757861442787,-500.0,0.00021973,2]
[385453200,1757861442796,-501.52711983,0.00021973,2]
[385453201,1757861442805,-173.63840549,0.00021973,2]
[385453202,1757861442814,-500.0,0.00021973,2]
[385453203,1757861442824,-500.0,0.00021973,2]
[385453204,1757861442833,-500.0,0.00021973,2]
[385453205,1757861442843,-497.27589563,0.00021973,2]
[385453206,1757861442852,-500.0,0.00021973,2]
[385453207,1757861442862,-500.0,0.00021973,2]
[385453208,1757861442872,-500.0,0.00021973,2]
[385453209,1757861442881,-500.0,0.00021973,2]
[385453210,1757861442890,-502.88567287,0.00021973,2]
[385453211,1757861442899,-500.0,0.00021973,2]
[385453212,1757861442910,-500.0,0.00021973,2]
[385453213,1757861442918,-503.38114305,0.00021973,2]
[385453214,1757861442926,-500.0,0.00021973,2]
[385453215,1757861442935,-502.72568923,0.00021973,2]
[385453216,1757861442945,-500.43853504,0.00021973,2]
[385453217,1757861442955,-500.0,0.00021973,2]
[385453219,1757861442964,-500.0,0.00021973,2]
[385453220,1757861442974,-393.34958586,0.00021973,2]
[385453221,1757861442986,-500.0,0.00021973,2]
[385453222,1757861442995,-500.0,0.00021973,2]
[385453223,1757861443005,-500.0,0.00021973,2]
[385453224,1757861443014,-500.0,0.00021973,2]
[385453225,1757861443023,-502.04397861,0.00021973,2]
[385453226,1757861443032,-500.0,0.00021973,2]
[385453227,1757861443042,-500.64990657,0.00021973,2]
[385453228,1757861443051,-500.0,0.00021973,2]
[385453230,1757861443060,-500.0,0.00021973,2]
[385453232,1757861443070,-500.0,0.00021973,2]
[385453234,1757861443081,-430.4152304,0.00022,2]
[385453236,1757861443090,-2464.61,0.00022,7]
[385453238,1757861443100,-36686.76,0.00022,7]
[385453239,1757861443114,-9769.39328835,0.00022,7]
[385453240,1757861443123,-241.64,0.00022,2]
[385453241,1757861443131,-450.91852861,0.00022023,2]
[385453242,1757861443140,-1000.0,0.00022091,2]
[385453243,1757861443149,-450.91852861,0.00022091,2]
[385453244,1757861443158,-151.0,0.000221,5]
[385453245,1757861443167,-157.71,0.000221,2]
[385453246,1757861443177,-168.0,0.00022138,2]
[385453247,1757861443186,-500.0,0.00022173,2]
[385453248,1757861443195,-618.82281971,0.00022173,2]
[385453249,1757861443205,-500.0,0.00022173,2]
[385453250,1757861443214,-500.0,0.00022173,2]
[385453251,1757861443223,-500.49420439,0.00022173,2]
[385453252,1757861443239,-500.0,0.00022173,2]
[385453253,1757861443248,-500.0,0.00022173,2]
[385453254,1757861443258,-502.28377199,0.00022173,2]
[385453255,1757861443267,-500.0,0.00022173,2]
[385453256,1757861443276,-503.03113778,0.00022173,2]
[385453257,1757861443285,-500.0,0.00022173,2]
[385453258,1757861443295,-500.0,0.00022173,2]
[385453259,1757861443304,-500.0,0.00022173,2]
[385453260,1757861443313,-500.0,0.00022173,2]
[385453261,1757861443325,-500.0,0.00022173,2]
[385453262,1757861443334,-500.0,0.00022173,2]
[385453263,1757861443344,-500.0,0.00022173,2]
[385453264,1757861443354,-501.09342471,0.00022173,2]
[385453265,1757861443363,-500.0,0.00022173,2]
[385453266,1757861443372,-502.60239958,0.00022173,2]
[385453267,1757861443382,-500.0,0.00022173,2]
[385453268,1757861443391,-500.80814639,0.00022173,2]
[385453269,1757861443400,-500.78801028,0.00022173,2]
[385453270,1757861443409,-500.0,0.00022173,2]
[385453271,1757861443418,-500.0,0.00022173,2]
[385453272,1757861443428,-472.69707413,0.00022173,2]
[385453273,1757861443438,-207.4190293,0.00022173,2]
[385453274,1757861443447,-500.0,0.00022173,2]
[385453275,1757861443456,-500.0,0.00022173,2]
[385453276,1757861443466,-500.0,0.00022173,2]
[385453277,1757861443475,-500.0,0.00022173,2]
[385453278,1757861443484,-151.0,0.00022173,7]
[385453279,1757861443493,-151.0,0.00022173,7]
[385453280,1757861443502,-151.0,0.00022173,7]
[385453281,1757861443511,-151.0,0.00022173,7]
[385453282,1757861443520,-151.0,0.00022173,7]
[385453283,1757861443529,-151.0,0.00022173,7]
[385453284,1757861443539,-500.0,0.00022191,5]
[385453285,1757861443548,-500.0,0.00022191,5]
[385453286,1757861443557,-160.0,0.00022191,3]
[385453287,1757861443566,-480.0,0.00022191,3]
[385453288,1757861443578,-480.0,0.00022191,3]
[385453289,1757861443587,-480.0,0.00022191,2]
[385453290,1757861443597,-221.26117875,0.00022191,3]
[385453292,1757861443607,-284.2095,0.00022191,7]
[385453293,1757861443617,-480.0,0.00022191,3]
[385453295,1757861443626,-673.11,0.00022191,3]
[385453297,1757861443637,-480.0,0.00022191,3]
[385453298,1757861443646,-480.0,0.00022191,3]
[385453299,1757861443656,-484.33910595,0.00022191,3]
[385453300,1757861443667,-480.0,0.00022191,3]
[385453301,1757861443677,-480.0,0.00022191,3]
[385453302,1757861443686,-480.0,0.00022191,3]
[385453303,1757861443695,-480.0,0.00022191,3]
[385453304,1757861443704,-480.0,0.00022191,3]
[385453305,1757861443713,-480.0,0.00022191,3]
[385453306,1757861443722,-480.0,0.00022191,3]
[385453307,1757861443732,-974.82,0.00022191,3]
[385453308,1757861443741,-480.0,0.00022191,3]
[385453309,1757861443750,-822.3,0.00022191,3]
[385453310,1757861443760,-480.0,0.00022191,3]
[385453311,1757861443770,-185.00889537,0.00022191,3]
[385453312,1757861443781,-480.0,0.00022191,3]
[385453313,1757861443802,-480.0,0.00022191,3]
[385453314,1757861443840,-489.89354717,0.00022191,3]
[385453315,1757861443859,-590.24,0.00022191,3]
[385453316,1757861443871,-480.0,0.00022191,3]
[385453317,1757861443883,-480.0,0.00022191,3]
[385453318,1757861443892,-1000.0,0.00022191,3]
[385453319,1757861443902,-480.0,0.00022191,3]
[385453320,1757861443916,-1137.16,0.00022191,3]
[385453321,1757861443926,-480.0,0.00022191,3]
[385453322,1757861443936,-480.0,0.00022191,3]
[385453323,1757861443947,-480.0,0.00022191,3]
[385453324,1757861443956,-480.0,0.00022191,3]
[385453325,1757861443966,-480.0,0.00022191,3]
[385453326,1757861443976,-490.46318283,0.00022191,3]
[385453327,1757861443987,-480.0,0.00022191,3]
[385453328,1757861443997,-480.0,0.00022191,3]
[385453329,1757861444006,-151.0,0.00022191,7]
[385453330,1757861444015,-480.0,0.00022191,3]
[385453331,1757861444024,-480.0,0.00022191,3]
[385453332,1757861444034,-480.0,0.00022191,3]
[385453333,1757861444043,-712.05,0.00022191,3]
[385453334,1757861444053,-480.0,0.00022191,3]
[385453335,1757861444062,-480.0,0.00022191,3]
[385453336,1757861444071,-480.0,0.00022191,3]
[385453337,1757861444083,-480.0,0.00022191,3]
[385453338,1757861444091,-480.0,0.00022191,3]
[385453339,1757861444101,-164.7,0.00022191,7]
[385453340,1757861444110,-164.7,0.00022191,7]
[385453341,1757861444119,-164.7,0.00022191,7]
[385453342,1757861444129,-164.7,0.00022191,7]
[385453343,1757861444138,-480.0,0.00022191,3]
[385453344,1757861444147,-164.7,0.00022191,7]
[385453345,1757861444156,-164.7,0.00022191,7]
[385453346,1757861444166,-480.0,0.00022191,3]
[385453347,1757861444176,-497.51,0.00022191,3]
[385453348,1757861444185,-164.7,0.00022191,7]
[385453349,1757861444194,-164.7,0.00022191,7]
[385453350,1757861444203,-480.0,0.00022191,3]
[385453351,1757861444215,-500.0,0.00022191,3]
[385453352,1757861444224,-480.0,0.00022191,3]
[385453353,1757861444234,-668.04,0.00022191,3]
[385453354,1757861444243,-480.0,0.00022191,3]
[385453355,1757861444254,-986.65,0.00022191,3]
[385453356,1757861444263,-522.3796169,0.00022191,3]
[385453357,1757861444273,-1030.51,0.00022191,3]
[385453358,1757861444283,-480.0,0.00022191,3]
[385453359,1757861444293,-892.61,0.00022191,3]
[385453360,1757861444302,-480.0,0.00022191,3]
[385453361,1757861444312,-480.0,0.00022191,3]
[385453362,1757861444322,-480.0,0.00022191,3]
[385453363,1757861444333,-822.49,0.00022191,3]
[385453364,1757861444343,-944.76,0.00022191,3]
[385453365,1757861444353,-480.0,0.00022191,3]
[385453366,1757861444362,-480.0,0.00022191,3]
[385453367,1757861444372,-502.31883609,0.00022191,3]
[385453368,1757861444381,-1941.17,0.00022191,3]
[385453369,1757861444391,-480.0,0.00022191,3]
[385453370,1757861444400,-948.56,0.00022191,3]
[385453371,1757861444409,-480.0,0.00022191,3]
[385453372,1757861444418,-480.0,0.00022191,3]
[385453373,1757861444428,-603.67,0.00022191,3]
[385453374,1757861444438,-423.40459866,0.00022191,3]
[385453375,1757861444447,-480.0,0.00022191,3]
[385453376,1757861444456,-480.0,0.00022191,3]
[385453377,1757861444465,-317.29334356,0.00022191,3]
[385453378,1757861444475,-1115.86,0.00022191,3]
[385453379,1757861444484,-500.0,0.00022191,3]
[385453380,1757861444494,-480.0,0.00022191,3]
[385453381,1757861444503,-480.0,0.00022191,3]
[385453382,1757861444513,-427.41755819,0.00022191,3]
[385453383,1757861444522,-496.57,0.00022191,3]
[385453384,1757861444532,-480.0,0.00022191,3]
[385453385,1757861444541,-480.0,0.00022191,3]
[385453386,1757861444551,-480.0,0.00022191,3]
[385453387,1757861444559,-480.0,0.00022191,3]
[385453388,1757861444568,-480.0,0.00022191,3]
[385453389,1757861444579,-480.0,0.00022191,3]
[385453390,1757861444589,-982.19,0.00022191,3]
[385453391,1757861444598,-480.0,0.00022191,3]
[385453392,1757861444608,-584.79,0.00022191,3]
[385453393,1757861444618,-480.0,0.00022191,3]
[385453394,1757861444627,-951.57,0.00022191,3]
[385453395,1757861444637,-480.0,0.00022191,3]
[385453396,1757861444646,-480.0,0.00022191,3]
[385453397,1757861444655,-480.0,0.00022191,3]
[385453398,1757861444665,-480.0,0.00022191,3]
[385453399,1757861444674,-480.0,0.00022191,3]
[385453400,1757861444683,-480.0,0.00022191,3]
[385453401,1757861444692,-1979.93,0.00022191,3]
[385453402,1757861444701,-480.0,0.00022191,3]
[385453403,1757861444711,-434.95350348,0.00022191,3]
[385453404,1757861444721,-480.0,0.00022191,3]
[385453405,1757861444730,-480.0,0.00022191,3]
[385453406,1757861444739,-480.0,0.00022191,3]
[385453407,1757861444749,-188.26348391,0.00022191,3]
[385453408,1757861444758,-1310.17,0.00022191,3]
[385453409,1757861444767,-480.0,0.00022191,3]
[385453410,1757861444777,-1008.07,0.00022191,3]
[385453411,1757861444786,-480.0,0.00022191,3]
[385453412,1757861444795,-480.0,0.00022191,3]
[385453413,1757861444804,-151.0,0.00022191,7]
[385453414,1757861444813,-480.0,0.00022191,3]
[385453415,1757861444823,-300.0,0.00022191,2]
[385453416,1757861444834,-480.0,0.00022191,3]
[385453417,1757861444844,-480.0,0.00022191,3]
[385453418,1757861444854,-784.97,0.00022191,3]
[385453419,1757861444863,-480.0,0.00022191,3]
[385453420,1757861444873,-504.67595141,0.00022191,3]
[385453421,1757861444883,-498.12,0.00022191,3]
[385453422,1757861444893,-480.0,0.00022191,3]
[385453423,1757861444903,-240.50131448,0.00022191,3]
[385453424,1757861444916,-480.0,0.00022191,3]
[385453425,1757861444926,-480.0,0.00022191,3]
[385453426,1757861444935,-480.0,0.00022191,3]
[385453427,1757861444945,-480.0,0.00022191,3]
[385453428,1757861444955,-480.0,0.00022191,3]
[385453429,1757861444964,-1221.84,0.00022191,3]
[385453430,1757861444974,-189.62555355,0.00022191,3]
[385453431,1757861444985,-480.0,0.00022191,3]
[385453432,1757861444995,-480.0,0.00022191,3]
[385453433,1757861445004,-480.0,0.00022191,3]
[385453434,1757861445014,-480.0,0.00022191,3]
[385453435,1757861445023,-480.0,0.00022191,3]
[385453436,1757861445032,-480.0,0.00022191,3]
[385453437,1757861445042,-484.77696479,0.00022191,3]
[385453438,1757861445051,-480.0,0.00022191,3]
[385453439,1757861445061,-480.0,0.00022191,3]
[385453440,1757861445071,-480.0,0.00022191,3]
[385453441,1757861445081,-844.86,0.00022191,3]
[385453442,1757861445090,-857.92,0.00022191,3]
[385453444,1757861445100,-354.7776158,0.00022191,3]
[385453446,1757861445109,-151.0,0.00022191,7]
[385453447,1757861445118,-480.0,0.00022191,3]
[385453448,1757861445127,-480.0,0.00022191,3]
[385453449,1757861445136,-480.0,0.00022191,3]
[385453450,1757861445146,-780.94,0.00022191,3]
[385453451,1757861445156,-431.74069649,0.00022191,3]
[385453452,1757861445165,-505.81,0.00022191,3]
[385453453,1757861445175,-151.0,0.00022191,7]
[385453454,1757861445185,-151.0,0.00022191,7]
[385453462,1757861445325,-151.0,0.00022191,7]
[385453463,1757861445335,-495.3,0.00022191,3]
[385453464,1757861445345,-480.0,0.00022191,3]
[385453465,1757861445354,-480.0,0.00022191,3]
[385453466,1757861445363,-151.0,0.00022191,7]
[385453467,1757861445372,-151.0,0.00022191,7]
[385453468,1757861445382,-151.0,0.00022191,7]
[385453469,1757861445391,-151.0,0.00022191,7]
[385453470,1757861445401,-151.0,0.00022191,7]
[385453471,1757861445410,-480.0,0.00022191,3]
[385453472,1757861445419,-480.0,0.00022191,3]
[385453474,1757861445429,-480.0,0.00022191,3]
[385453476,1757861445438,-480.0,0.00022191,3]
[385453478,1757861445448,-480.0,0.00022191,3]
[385453480,1757861445458,-734.18,0.00022191,3]
[385453482,1757861445467,-624.38,0.00022191,3]
[385453484,1757861445476,-811.47,0.00022191,3]
[385453486,1757861445485,-977.12,0.00022191,3]
[385453488,1757861445494,-1286.18,0.00022191,3]
[385453490,1757861445504,-158.140728,0.00022191,7]
[385453492,1757861445513,-151.0,0.00022191,7]
[385453494,1757861445522,-1159.89,0.00022191,3]
[385453496,1757861445532,-480.0,0.00022191,3]
[385453498,1757861445541,-1268.92,0.00022191,3]
[385453500,1757861445551,-480.0,0.00022191,3]
[385453502,1757861445560,-562.86161447,0.00022191,3]
[385453504,1757861445570,-568.38,0.00022191,3]
[385453506,1757861445581,-683.46,0.00022191,3]
[385453508,1757861445591,-6123.69,0.00022191,3]
[385453510,1757861445600,-480.0,0.00022191,3]
[385453512,1757861445610,-480.0,0.00022191,3]
[385453514,1757861445619,-151.0,0.00022191,7]
[385453516,1757861445629,-13955.39,0.00022191,3]
[385453518,1757861445639,-815.89,0.00022191,3]
[385453520,1757861445648,-480.0,0.00022191,3]
[385453521,1757861445658,-480.0,0.00022191,3]
[385453522,1757861445668,-454.6320539,0.00022191,3]
[385453523,1757861445677,-1568.23,0.00022191,3]
[385453524,1757861445687,-604.81122992,0.00022191,3]
[385453525,1757861445697,-4224.97,0.00022191,3]
[385453526,1757861445706,-480.0,0.00022191,3]
[385453527,1757861445716,-480.0,0.00022191,3]
[385453528,1757861445726,-480.0,0.00022191,3]
[385453529,1757861445735,-192.89126168,0.00022191,3]
[385453530,1757861445745,-151.0,0.00022191,7]
[385453531,1757861445755,-480.0,0.00022191,3]
[385453532,1757861445764,-1574.31,0.00022191,3]
[385453533,1757861445774,-189.73023821,0.00022191,3]
[385453534,1757861445784,-688.79,0.00022191,3]
[385453535,1757861445794,-1617.97,0.00022191,3]
[385453536,1757861445804,-2801.74,0.00022191,3]
[385453537,1757861445814,-512.98,0.00022191,3]
[385453538,1757861445823,-637.03,0.00022191,3]
[385453539,1757861445835,-2310.62,0.00022191,3]
[385453540,1757861445845,-480.0,0.00022191,3]
[385453541,1757861445856,-480.0,0.00022191,3]
[385453542,1757861445867,-2314.91,0.00022191,3]
[385453543,1757861445876,-1228.88,0.00022191,3]
[385453544,1757861445887,-480.0,0.00022191,3]
[385453545,1757861445897,-480.0,0.00022191,3]
[385453546,1757861445909,-7025.21,0.00022191,3]
[385453547,1757861445919,-1342.25,0.00022191,3]
[385453548,1757861445930,-897.97,0.00022191,3]
[385453549,1757861445940,-151.0,0.00022191,7]
[385453550,1757861445951,-151.0,0.00022191,7]
[385453551,1757861445960,-480.0,0.00022191,3]
[385453552,1757861445970,-480.0,0.00022191,3]
[385453553,1757861445979,-480.0,0.00022191,3]
[385453554,1757861445990,-480.0,0.00022191,3]
[385453555,1757861446001,-2920.79,0.00022191,3]
[385453556,1757861446011,-529.76015036,0.00022191,3]
[385453557,1757861446021,-480.0,0.00022191,3]
[385453558,1757861446031,-3268.65,0.00022191,3]
[385453559,1757861446042,-1212.06,0.00022191,3]
[385453560,1757861446052,-480.0,0.00022191,3]
[385453561,1757861446061,-3076.98,0.00022191,3]
[385453562,1757861446071,-480.0,0.00022191,3]
[385453563,1757861446082,-597.56,0.00022191,3]
[385453564,1757861446091,-178.38,0.00022191,3]
[385453565,1757861446101,-4228.56,0.00022191,3]
[385453566,1757861446110,-480.0,0.00022191,3]
[385453567,1757861446120,-542.98,0.00022191,3]
[385453568,1757861446130,-480.0,0.00022191,3]
[385453569,1757861446139,-971.82,0.00022191,3]
[385453570,1757861446149,-480.0,0.00022191,3]
[385453571,1757861446158,-5753.16,0.00022191,3]
[385453572,1757861446168,-480.0,0.00022191,3]
[385453573,1757861446178,-480.0,0.00022191,3]
[385453574,1757861446187,-480.0,0.00022191,3]
[385453575,1757861446197,-523.27,0.00022191,3]
[385453576,1757861446207,-1319.58,0.00022191,3]
[385453577,1757861446216,-480.0,0.00022191,3]
[385453578,1757861446226,-505.91065217,0.00022191,3]
[385453579,1757861446236,-474.75949799,0.00022191,3]
[385453580,1757861446246,-480.0,0.00022191,3]
[385453581,1757861446257,-439.4470759,0.00022191,3]
[385453583,1757861446266,-480.0,0.00022191,3]
[385453584,1757861446275,-480.0,0.00022191,3]
[385453585,1757861446285,-151.0,0.00022191,7]
[385453587,1757861446294,-612.77,0.00022191,3]
[385453590,1757861446303,-829.63,0.00022191,3]
[385453592,1757861446312,-1123.93,0.00022191,3]
[385453594,1757861446322,-480.0,0.00022191,3]
[385453596,1757861446332,-1467.29,0.00022191,3]
[385453597,1757861446342,-498.23,0.00022191,3]
[385453599,1757861446351,-1038.84,0.00022191,3]
[385453601,1757861446361,-616.35,0.00022191,3]
[385453602,1757861446370,-2556.61,0.00022191,3]
[385453604,1757861446380,-909.61,0.00022191,3]
[385453606,1757861446389,-1593.57,0.00022191,3]
[385453608,1757861446399,-834.99,0.00022191,3]
[385453610,1757861446408,-1158.75,0.00022191,3]
[385453612,1757861446417,-4013.07,0.00022191,3]
[385453614,1757861446426,-780.28,0.00022191,3]
[385453616,1757861446436,-602.68,0.00022191,3]
[385453618,1757861446445,-569.55,0.00022191,3]
[385453620,1757861446455,-736.66,0.00022191,3]
[385453622,1757861446465,-24338.45,0.00022191,3]
[385453624,1757861446474,-2989.2,0.00022191,3]
[385453626,1757861446483,-543.70766792,0.00022191,3]
[385453628,1757861446492,-480.0,0.00022191,3]
[385453630,1757861446502,-480.0,0.00022191,3]
[385453632,1757861446511,-487.53045418,0.00022191,3]
[385453634,1757861446520,-1380.42,0.00022191,3]
[385453636,1757861446529,-1178.35,0.00022191,3]
[385453638,1757861446538,-2677.4,0.00022191,3]
[385453640,1757861446548,-480.0,0.00022191,3]
[385453642,1757861446557,-1461.19,0.00022191,3]
[385453644,1757861446566,-567.85,0.00022191,3]
[385453646,1757861446576,-480.0,0.00022191,3]
[385453648,1757861446586,-1953.71,0.00022191,3]
[385453650,1757861446596,-480.0,0.00022191,3]
[385453652,1757861446606,-480.0,0.00022191,3]
[385453654,1757861446615,-480.0,0.00022191,3]
[385453656,1757861446625,-1088.61,0.00022191,3]
[385453658,1757861446634,-480.0,0.00022191,3]
[385453660,1757861446643,-417.15472785,0.00022191,3]
[385453662,1757861446653,-892.19,0.00022191,3]
[385453664,1757861446662,-151.0,0.00022191,7]
[385453666,1757861446672,-1173.4,0.00022191,3]
[385453667,1757861446682,-151.0,0.00022191,7]
[385453668,1757861446692,-521.82,0.00022191,3]
[385453669,1757861446702,-818.3,0.00022191,3]
[385453670,1757861446711,-600.82,0.00022191,3]
[385453671,1757861446720,-3090.32,0.00022191,3]
[385453672,1757861446730,-151.0,0.00022191,7]
[385453673,1757861446739,-2735.44,0.00022191,3]
[385453674,1757861446749,-480.0,0.00022191,2]
[385453675,1757861446759,-480.0,0.00022191,3]
[385453676,1757861446768,-151.0,0.000222,7]
[385453677,1757861446778,-151.0,0.000222,9]
[385453678,1757861446787,-10590.30103238,0.00022222,2]
[385453679,1757861446797,-168.0,0.00022264,2]
[385453680,1757861446807,-160.0,0.00022289,3]
[385453681,1757861446816,-184.283136,0.000223,2]
[385453682,1757861446827,-151.0,0.000223,10]
[385453683,1757861446836,-151.0,0.000223,8]
[385453684,1757861446846,-151.0,0.000223,8]
[385453685,1757861446855,-976.0,0.00022331,2]
[385453686,1757861446865,-634.0,0.00022331,2]
[385453687,1757861446874,-2156.0,0.00022331,2]
[385453688,1757861446883,-300.0,0.00022354,20]
[385453689,1757861446893,-300.0,0.00022354,20]
[385453690,1757861446903,-300.0,0.00022354,20]
[385453691,1757861446915,-300.0,0.00022354,20]
[385453692,1757861446924,-300.0,0.00022354,20]
[385453693,1757861446933,-300.0,0.00022354,20]
[385453694,1757861446943,-300.0,0.00022354,20]
[385453695,1757861446953,-300.0,0.00022354,20]
[385453696,1757861446962,-300.0,0.00022354,20]
[385453697,1757861446971,-300.0,0.00022354,20]
[385453698,1757861446981,-300.0,0.00022354,20]
[385453699,1757861446991,-300.0,0.00022354,20]
[385453700,1757861447001,-300.0,0.00022354,20]
[385453701,1757861447012,-300.0,0.00022354,20]
[385453702,1757861447022,-300.0,0.00022354,20]
[385453703,1757861447031,-600.0,0.00022354,20]
[385453704,1757861447040,-720.97614853,0.00022398,2]
[385453705,1757861447049,-151.0,0.000224,10]
[385453706,1757861447059,-151.0,0.000224,6]
[385453707,1757861447068,-151.0,0.000224,9]